Workbook

Sheet PRISLISTE NAT.
B3: PRISLISTE NATURVIDENSKAB
B5: Priser gældende fra november 2025. Fra 2022 og frem indeksreguleres timeprisen halvårligt den 1/4 og 1/10. Man er altid velkommen til (omkostningsfrit) at ringe til afdelingen med sprøgsmål. Alle priser er vejledende. Ret til ændringer forbeholdes.
B6: Kontakt afdelingen: 87 39 40 41 | E6: Timepris (kr. ex. moms): | F6: 688.50 kr.
B7: POST | C7: KOMMENTAR / BESKRIVELSE | D7: PRØVETYPE | E7: PRIS EX. MOMS (kr.)
B8: KONSULENTSERVICE - Vi anbefaler at ansøge om konsulentservice i forbindelse med budgetplanlægning
B9: Strategimøde (telefonisk) | C9: F.eks. via skype | E9: =$F$6 -> 688.50 kr. | F9: pr. time
B10: Strategimøde i felten | C10: Ekskl. kørsel | E10: =$F$6 -> 688.50 kr. | F10: pr. time
B11: Prøveudtagning/feltarbejde | C11: Ekskl. kørsel og felttillæg | E11: 688.50 kr. | F11: pr. time
B12: Kørsel | C12: Tur-retur mellem Moesgård og lokalitet | E12: 3.81 kr. | F12: pr. km
B13: Felttillæg | C13: Ved feltarbejde | E13: 100.00 kr. | F13: pr. dag
B14: Andre udgifter | C14: Fx overnatning | E14: Kontakt afdelingen: 87 39 40 41
B15: PRØVEFORARBEJDNING
B16: Flotering | C16: Max. 5 liters jordprøve | E16: 456.00 kr. | F16: pr. prøve
B17: Vådsoldning (1-2mm) | C17: Max. 5 liters jordprøve. Soldning til f.eks. screening af knogler | E17: =$E$16*2 -> 912.00 kr. | F17: pr. prøve
B18: Vådsoldning (0,25-2mm) | C18: Max. 5 liters jordprøve. Soldning til f.eks. screening af makrofossiler og smedeskæl | E18: =$E$16*5 -> 2,280.00 kr. | F18: pr. prøve
B19: KERNEBORINGER
B20: Startgebyr | E20: =$F$6*1.5 -> 1,032.75 kr. | F20: pr. sag
B21: Vedligehold | C21: Udgifter til vedligeholdelse af boreudstyr, benzin, olie etc. | E21: 1,000.00 kr. | F21: pr. sag
B22: Kerneboring/feltarbejde | C22: Ekskl. Kørsel og felttillæg. Dobbelt timepris da boret betjenes af to personer. En kerneboring på 2-3 meter i dybden tager som tommelfingerregel cirka 50 minutter at bore. Det vil sige man kan nå 7-8 boringer på 2-3 meter i dybden i løbet af en dag. For anden information Kontakt afdelingen: 87 39 40 41s geolog Jesper Petersen (jep@moesgaardmuseum.dk) | E22: =$F$6*2 -> 1,377.00 kr. | F22: pr. time
B23: MAKROFOSSILER
B24: Startgebyr | E24: =$F$6*1.5 -> 1,032.75 kr. | F24: pr. sag
B25: Kursorisk gennemsyn | C25: Typisk ekspeditionstid 3-4 måneder | D25: Tørt | E25: 160.00 kr. | F25: pr. prøve
D26: Vådt | E26: =$F$6*2 -> 1,377.00 kr. | F26: pr. prøve
B27: Ekspres kursorisk gennemsyn | C27: Typisk ekspeditionstid 3-4 uger | D27: Tørt | E27: =$E$25*1.5 -> 240.00 kr. | F27: pr. prøve
D28: Vådt | E28: =$E$26*1.5 -> 2,065.50 kr. | F28: pr. prøve
B29: Ompakning af prøver ifm. gennemsyn | C29: F.eks. ved adskillelse af arkæologiske fund fra makrofossiler og prøver i stofposer, hvor ompakning er nødvendig | E29: 34.00 kr. | F29: pr. prøve
B30: Analyse med rapport | C30: Kontakt evt. afdelingen eller benyt timeantal fra specifikke tilbud | E30: =$F$6 -> 688.50 kr. | F30: pr. time
C31: Definerede priser ifm. specifikke fund og anlægstyper, se arket Prisoverslag Arkæobotanik | E31: se Prisoverslag Arkæobotanik
B32: UDTAGNING TIL 14C-DATERING - OBS! Ved flere end 100 udtagninger til 14C-datering fra samme sag gives 20 % rabat
B33: Udtagning til 14C | C33: Typisk ekspeditionstid 8-12 uger | D33: 1. prøve | E33: 842.00 kr.
D34: 2. og 3. prøve | E34: 735.00 kr. | F34: pr. prøve
D35: Efterfølgende prøver | E35: 700.00 kr. | F35: pr. prøve
B36: Ekspres udtagning til 14C | C36: Typisk ekspeditionstid 2-3 uger | D36: 1. prøve | E36: =E33*1.5 -> 1,263.00 kr.
D37: 2. og 3. prøve | E37: =E34*1.5 -> 1,102.50 kr. | F37: pr. prøve
D38: Efterfølgende prøver | E38: =E35*1.5 -> 1,050.00 kr. | F38: pr. prøve
B39: Wiggle-match udtagning | C39: OBS! Ved Wiggelmatching anbefales, at man begynder med en enkelt datering for at se, hvor på 14C -kurven dateringen ligger. Herefter kan de øvrige prøver dateres. Dette aftales med dateringslaboratoriet | D39: Udtagning af 3 prøver fra et emne | E39: =$F$6*4 -> 2,754.00 kr. | F39: pr. emne
D40: Udtagning af 5 prøver fra et emne | E40: =$F$6*6 -> 4,131.00 kr. | F40: pr. emne
B41: Indtastning til Poznan | E41: 31.00 kr. | F41: pr. prøve
B42: TRÆKUL
B43: Startgebyr | E43: =$F$6*1.5 -> 1,032.75 kr. | F43: pr. sag
B44: Kursorisk vedgennemsyn | C44: Inkl. grundlæggende rapport, som inkluderer prøvevurdering og bestemmelse af 10 stykker trækul | E44: =$F$6*2 -> 1,377.00 kr. | F44: pr. prøve
B45: Vedanalyse | C45: Ekskl. rapport. Inkluderer bestemmelse af op til 30 stk. trækul. Identifikationsantallet er med forbehold i bevarings- og fragmentationsgrad | E45: =$F$6*6 -> 4,131.00 kr. | F45: pr. prøve
B46: Rapport | C46: Typisk ekspeditionstid 8-12 måneder | D46: Til og med 4 prøver = 2 timer | E46: =$F$6*2 -> 1,377.00 kr. | F46: pr. rapport
D47: 5-9 prøver = 8 timer | E47: =$F$6*8 -> 5,508.00 kr. | F47: pr. rapport
D48: Flere end 9 prøver = 16 timer | E48: =$F$6*16 -> 11,016.00 kr. | F48: pr. rapport
B49: VANDDRUKKENT/UFORKULLET TRÆ
B50: Vedbestemmelse | C50: Inkl. grundlæggende rapport | D50: 1. prøve | E50: =$F$6*2 -> 1,377.00 kr.
D51: 2. og 3. prøve | E51: =$F$6*1.75 -> 1,204.88 kr. | F51: pr. prøve
D52: Efterfølgende prøver | E52: =$F$6*1.5 -> 1,032.75 kr. | F52: pr. prøve
B53: DENDROKRONOLOGI
B54: Startgebyr | E54: =$F$6*1.5 -> 1,032.75 kr. | F54: pr. sag
B55: Kursorisk gennemsyn | C55: Vurderingspris pr. prøve | E55: =$F$6*0.25 -> 172.13 kr. | F55: pr. prøve
B56: Dendrokronologisk datering | C56: Startgebyr for datering | E56: =$F$6*2 -> 1,377.00 kr. | F56: pr. sag
C57: Typisk ekspeditionstid 1-2 måneder | D57: Arkæologiske fund | E57: =$F$6*2 -> 1,377.00 kr. | F57: pr. prøve
D58: Stående bygninger (fx. boreprøver) | E58: =$F$6 -> 688.50 kr. | F58: pr. prøve
B59: Prøveudtagning (fx boreprøver) | C59: Se prøveudtagning/feltarbejde under KONSULENTSERVICE | E59: Kontakt afdelingen: 87 39 40 41
B60: KNOGLER
B61: Startgebyr | E61: =$F$6*1.5 -> 1,032.75 kr. | F61: pr. sag
B62: Kursorisk gennemsyn | C62: Udsortering og vurdering af knogler fra soldeprøver. | D62: Udsortering af knogler (ex. soldning) | E62: =$F$6 -> 688.50 kr. | F62: pr. time
C63: Udsortering og vurdering af knogler fra soldeprøver (finsoldning) | D63: Screening af 5L soldeprøve (ex. soldning) | E63: =$F$6 -> 688.50 kr. | F63: pr. prøve
C64: Ved større sager: Udvælgelse af delmateriale til analyse | D64: Udvælgelse til analyse | E64: =$F$6 -> 688.50 kr. | F64: pr. time
B65: Zooarkæologi | C65: Tilbud udfærdiges på baggrund af prøvestørrelse, sammensætning (pattedyr/fisk, brændt/ubrændt etc.) og problemstilling | D65: Zooarkæologisk analyse | E65: =$F$6 -> 688.50 kr. | F65: pr. time
C66: Analyse af dyreknogler i brandgrave. Tilbud udfærdiges på baggrund af prøvestørrelse. | D66: Zooarkæologisk analyse (brandgrav) | E66: =$F$6 -> 688.50 kr. | F66: pr. time
B67: Humanosteologi | C67: Kursorisk gennemsyn af brændtbensansamlinger (dyr eller menneske?) samt vurdring af potentiale (egnet til analyse?) | D67: Brandgrave/brændtbens-ansamlinger | E67: =$F$6*1.5 -> 1,032.75 kr. | F67: pr. kontekst/grav
C68: Detaljeret analyse af kursorisk gennemset materiale (brandgrav) | D68: Brandgrav (kursorisk gennemset mat.) | E68: =$F$6*3 -> 2,065.50 kr. | F68: pr. kontekst/grav
C69: Analyse af jordfæstebegravelser, moseskeletter og kremeret materiale | D69: Grav (ugennemset mat.) | E69: =$F$6*4 -> 2,754.00 kr. | F69: pr. skelet
C70: Analyse af delvist bevarede ubrændte skeletter (50 % bevaret og herunder) | D70: Grav (½ skelet) | E70: =$F$6*2 -> 1,377.00 kr. | F70: pr. skelet
B71: Udtagning til 14C- og isotopanalyser | C71: Artsbestememlse og udtagning af knogler til 14C og Isotopanlayser | D71: 1. prøve | E71: 830.00 kr.
D72: 2. og 3. prøve | E72: 725.00 kr. | F72: pr. prøve
C73: Ved mere end 100 prøver fa samme sag gives 20% rabat | D73: Efterfølgende prøver | E73: 690.00 kr. | F73: pr. prøve
B74: Levering til Zoologisk Museum/ADBOU | C74: Levering af knoglemateriale til Zoologisk Museum og ADBOU. Ved meget store mængder knogler - Kontakt afdelingen: 87 39 40 41 | D74: Levering af knogler | E74: =$F$6*2.5 -> 1,721.25 kr. | F74: pr. sag
B75: POLLEN
B76: Startgebyr | E76: =$F$6*1.5+$E$108 -> 1,367.75 kr. | F76: pr. sag
B77: Kursorisk gennemsyn | C77: Inkl. præparation. Tillæg for anvendt tid ved prøveudtagning fra søjler | E77: =$F$6*4 -> 2,754.00 kr. | F77: pr. prøve
B78: Analyse | C78: Inkl. rapport. Pris udregnes med baggrund i kursoriske gennemsyn | E78: Kontakt afdelingen: 87 39 40 41
B79: Prøveudtagning | C79: Af pollensøjle. 2 timer pr. søjle | E79: =$F$6*2 -> 1,377.00 kr. | F79: pr. søjle
B80: Frysetørring | C80: Af pollensøjle | E80: =$F$6*3 -> 2,065.50 kr. | F80: pr. søjle
B81: NON-POLLEN PALYNOMORPHS (NPP)
B82: Startgebyr | E82: =$F$6*1.5+$E$108 -> 1,367.75 kr. | F82: pr. sag
B83: Kursorisk gennemsyn | C83: Inkl. præparation | E83: =$F$6*10 -> 6,885.00 kr. | F83: pr. prøve
B84: Analyse | C84: Aftales efter det kursoriske gennemsyn | E84: Kontakt afdelingen: 87 39 40 41
B85: TEFRA
B86: Analyse | E86: Kontakt afdelingen: 87 39 40 41
B87: INSEKTER
B88: Startgebyr | E88: =$F$6*1.5 -> 1,032.75 kr. | F88: pr. sag
B89: Screening | C89: Vådsoldning max. 5 liters jordprøve. Screening/kursorisk gennemsyn for insektdele | E89: =$F$6*3.5 -> 2,409.75 kr. | F89: pr. prøve
B90: Analyse | C90: Entomologisk analyse inkl. rapport | E90: =$F$6*10 -> 6,885.00 kr. | F90: pr. prøve
B91: SLAGGER
B92: Startgebyr | E92: =$F$6*1.5 -> 1,032.75 kr. | F92: pr. sag
B93: Kursorisk vurdering | C93: Ekskl. rapport | D93: Slagger & ovnfragmenter | E93: =$F$6 -> 688.50 kr. | F93: pr. time
B94: Rapport | E94: =$F$6*2 -> 1,377.00 kr. | F94: pr. rapport
B95: TYNDSLIB
B96: Analyse | C96: Vejledning og videreformidling til underleverandør | E96: Kontakt afdelingen: 87 39 40 41
B97: MATERIALEANALYSER - Se PRISLISTE KONS. for følgende materialeanalyser
B98: Artsbestemmelse | C98: Af læder og hud | E98: Se PRISLISTE KONS.
B99: Fiberidentifikation | C99: Af tekstil og pels | E99: Se PRISLISTE KONS.
B100: Spottest | C100: Metalidentifikation | E100: Se PRISLISTE KONS.
B101: Lipidanalyse | C101: Udtagning, forsendelse, videreformidling til underleverandør og tolkning | E101: Se PRISLISTE KONS.
B102: CT-SCANNING & RØNTGEN
B103: Startgebyr | E103: =$F$6*2.5 -> 1,721.25 kr. | F103: pr. sag
B104: CT-scanning | C104: Fx urner. Max 3 urner pr. scanning (ekskl. 1 times transport) | E104: 2,500.00 kr. | F104: pr. scanningstime
B105: mikro CT-scanning | C105: Fx trægenstande ifbm. dendrokronologi (ekskl. 1 times transport) | E105: 2,500.00 kr. | F105: pr. scanningstime
B106: Kørsel (til og fra CT-scanning) | E106: 3.81 kr. | F106: pr. km
B107: FORSENDELSE, SAMMENSKRIVNING MM.
B108: Forsendelse (pr. sag) | C108: Ved rekommanderet forsendelse af prøver inden for Europa | D108: <2 kg | E108: 335.00 kr. | F108: pr. sag
D109: >2 kg | E109: Kontakt afdelingen: 87 39 40 41
B110: Sammenskrivning | C110: Sammenskrivning af flere analyser fra én specifik sag/udgravning (Kontakt afdelingen: 87 39 40 41) | E110: Kontakt afdelingen: 87 39 40 41

Sheet PRISBEREGNER NAT.
B3: PRISBEREGNER NATURVIDENSKAB
B5: Skemaets beregninger er baseret på priserne fra arket "PRISLISTE NATURVIDENSKAB". Se dette ark for uddybende kommentarer angående priserne. | H5: DATO
B6: Skemaet kan benyttes til at udregne priser og skabe overblik over naturvidenskablige undersøgelser ifm. ansøgninger til Slots- og Kulturstyrelsen. | H6: JOURNAL NR.
B7: I de gule felter i kolonne E indtastes det ønskede/forventede antal af de relevante ydelser for den givne lokalitet. Alle priser er vejledende.
H8: Timepris (kr. ex. moms): | I8: 688.50 kr.
B9: POST | C9: PRØVETYPE / KOMMENTAR | D9: PRIS PR. ENHED | E9: ANTAL | G9: PRIS EX. MOMS | H9: MOMS | I9: PRIS INKL. MOMS
B10: KONSULENTSERVICE
B11: Strategimøde (telefonisk) | C11: F.eks. via skype | D11: =$I$8 -> 688.50 kr. | F11: timer | G11: =D11*E11 -> 0 | H11: =G11*0.25 -> 0 | I11: =SUM(G11:H11) -> 0
B12: Strategimøde i felten | C12: Ekskl. kørsel | D12: =$I$8 -> 688.50 kr. | F12: timer | G12: =D12*E12 -> 0 | H12: 0 | I12: 0
B13: Prøveudtagning/feltarbejde | C13: Ekskl. kørsel og felttillæg | D13: =$I$8 -> 688.50 kr. | F13: timer | G13: =D13*E13 -> 0 | H13: 0 | I13: 0
B14: Kørsel | C14: T/r Moesgård-lokalitet | D14: ='PRISLISTE NAT.'!E12 -> 3.81 kr. | F14: km | G14: =D14*E14 -> 0 | H14: 0 | I14: 0
B15: Felttillæg | C15: Pr. dag | D15: ='PRISLISTE NAT.'!E13 -> 100.00 kr. | F15: dage | G15: =D15*E15 -> 0 | H15: 0 | I15: 0
B16: Andre udgifter | C16: Fx overnatning | E16: kr. | G16: =SUM(D16) -> 0 | H16: 0 | I16: 0
B17: SAMLET | G17: =SUM(G11:G16) -> 0 | H17: =SUM(H11:H16) -> 0 | I17: =SUM(I11:I16) -> 0
B18: PRØVEFORARBEJDNING
B19: Flotering | C19: 5 L jordprøve | D19: ='PRISLISTE NAT.'!$E$16 -> 456.00 kr. | F19: prøver | G19: =D19*E19 -> 0 | H19: =G19*0.25 -> 0 | I19: =SUM(G19:H19) -> 0
B20: Vådsoldning (1-2mm) | C20: Max. 5 L jord. F.eks. til screning af knogler | D20: =$D$19*2 -> 912.00 kr. | F20: prøver | G20: =D20*E20 -> 0 | H20: =G20*0.25 -> 0 | I20: =SUM(G20:H20) -> 0
B21: Vådsoldning (0,25-2mm) | C21: Max. 5 L jord. Til screening af insekter, smedeskæl osv. | D21: =D19*5 -> 2,280.00 kr. | F21: prøver | G21: 0 | H21: 0 | I21: =SUM(G21:H21) -> 0
B22: SAMLET | G22: =SUM(G19:G21) -> 0 | H22: =SUM(H19:H21) -> 0 | I22: =SUM(I19:I21) -> 0
B23: KERNEBORINGER
B24: Startgebyr pr. ny sag | C24: Startgebyr ekskluderes (forsættelse af sag) | E24: FALSE | G24: =IF(E24=TRUE(),,IF(E26>0,$I$8*1.5,)) -> 0 | H24: =G24*0.25 -> 0 | I24: =SUM(G24:H24) -> 0
B25: Vedligehold | G25: =IF(E26>0,1000,) -> 0
B26: Kerneboring/feltarbejde | C26: Kontakt afdelingen (Tlf. 87 39 40 41) | D26: =$I$8*2 -> 1,377.00 kr. | F26: timer | G26: =D26*E26 -> 0 | H26: =G26*0.25 -> 0 | I26: =SUM(G26:H26) -> 0
B27: SAMLET | G27: =SUM(G24:G26) -> 0 | H27: =SUM(H24:H26) -> 0 | I27: =SUM(I24:I26) -> 0
B28: MAKROFOSSILER
B29: Startgebyr pr. ny sag | C29: Startgebyr ekskluderes (forsættelse af sag) | E29: FALSE | G29: =IF(E29=TRUE(),,IF(OR(E30>0,E31>0,E32>0,E33>0,E35>0),$I$8*1.5,)) -> 0 | H29: =G29*0.25 -> 0 | I29: =SUM(G29:H29) -> 0
B30: Kursorisk gennemsyn | C30: Tørt | D30: ='PRISLISTE NAT.'!$E$25 -> 160.00 kr. | F30: prøver | G30: =D30*E30 -> 0 | H30: =G30*0.25 -> 0 | I30: 0
C31: Vådt | D31: ='PRISLISTE NAT.'!E26 -> 1,377.00 kr. | F31: prøver | G31: =D31*E31 -> 0 | H31: 0 | I31: 0
B32: Ekspres kursorisk gennemsyn | C32: Tørt | D32: ='PRISLISTE NAT.'!E27 -> 240.00 kr. | F32: prøver | G32: 0 | H32: 0 | I32: 0
C33: Vådt | D33: ='PRISLISTE NAT.'!E28 -> 2,065.50 kr. | F33: prøver | G33: 0 | H33: 0 | I33: 0
B34: Ompakning af prøver ifm. gennemsyn | D34: ='PRISLISTE NAT.'!$E$29 -> 34.00 kr. | F34: prøver | G34: 0 | H34: 0 | I34: 0
B35: Analyse med rapport | C35: Kontakt afdelingen (Tlf. 87 39 40 41) | D35: =I8 -> 688.50 kr. | F35: timer | G35: 0 | H35: 0 | I35: 0
E36: se evt. Prisoverslag Arkæobotanik | G36: ='PRISOVERSLAG ARKÆO.'!E20 -> 0 | H36: ='PRISOVERSLAG ARKÆO.'!F20 -> 0 | I36: ='PRISOVERSLAG ARKÆO.'!G20 -> 0
B37: SAMLET | G37: =SUM(G29:G36) -> 0 | H37: =SUM(H29:H36) -> 0 | I37: =SUM(I29:I36) -> 0
B38: UDTAGNING TIL 14C-DATERING
B39: Udtagning til 14C | C39: 20% rabat ved 100+ prøver | D39: ='PRISLISTE NAT.'!$E$35&"-"&'PRISLISTE NAT.'!$E$33&" kr." -> 700-842 kr. | F39: prøver | G39: =IF(E39=1,'PRISLISTE NAT.'!E33,IF(E39=2,('PRISLISTE NAT.'!E33+'PRISLISTE NAT.'!E34),IF(E39=3,('PRISLISTE NAT.'!E33+'PRISLISTE NAT.'!E34+'PRISLISTE NAT.'!E34),IF(AND(E39>3,E39<100),('PRISLISTE NAT.'!E33+'PRISLISTE NAT.'!E34+'PRISLISTE NAT.'!E34+((E39-3)*'PRISLISTE NAT.'!E35)),IF(E39>=100,(('PRISLISTE NAT.'!E33+'PRISLISTE NAT.'!E34+'PRISLISTE NAT.'!E34+(E39-3)*'PRISLISTE NAT.'!E35)*0.8),))))) -> 0 | H39: =G39*0.25 -> 0 | I39: =SUM(G39:H39) -> 0
B40: Ekspres udtagning til 14C | D40: ='PRISLISTE NAT.'!$E$38&"-"&'PRISLISTE NAT.'!$E$36&" kr." -> 1050-1263 kr. | F40: prøver | G40: =IF(E40=1,'PRISLISTE NAT.'!E36,IF(E40=2,('PRISLISTE NAT.'!E36+'PRISLISTE NAT.'!E37),IF(E40=3,('PRISLISTE NAT.'!E36+'PRISLISTE NAT.'!E37*2),IF(E40>3,('PRISLISTE NAT.'!E36+'PRISLISTE NAT.'!E37*2+(E40-3)*'PRISLISTE NAT.'!E38),)))) -> 0 | H40: =G40*0.25 -> 0 | I40: =SUM(G40:H40) -> 0
B41: Wiggle-match udtagning | C41: 3 udt. fra én prøve | D41: ='PRISLISTE NAT.'!E39 -> 2,754.00 kr. | F41: prøver | G41: =D41*E41 -> 0 | H41: 0 | I41: 0
C42: 5 udt. fra én prøve | D42: ='PRISLISTE NAT.'!E40 -> 4,131.00 kr. | F42: prøver | G42: =D42*E42 -> 0 | H42: 0 | I42: 0
B43: Indtastning til Poznan | D43: ='PRISLISTE NAT.'!$E$41 -> 31.00 kr. | F43: prøver | G43: =D43*E43 -> 0 | H43: =G43*0.25 -> 0 | I43: =SUM(G43:H43) -> 0
B44: SAMLET | G44: =SUM(G39:G43) -> 0 | H44: =SUM(H39:H43) -> 0 | I44: =SUM(I39:I43) -> 0
B45: TRÆKUL
B46: Startgebyr pr. ny sag | C46: Startgebyr ekskluderes (forsættelse af sag) | E46: FALSE | G46: =IF(E46=TRUE(),,IF(OR(E47>0,E48>0),$I$8*1.5,)) -> 0 | H46: =G46*0.25 -> 0 | I46: =SUM(G46:H46) -> 0
B47: Kursorisk vedgennemsyn | C47: Inkl. simpel rapport | D47: =$I$8*2 -> 1,377.00 kr. | F47: prøver | G47: =D47*E47 -> 0 | H47: 0 | I47: 0
B48: Vedanalyse | C48: Ekskl. rapport | D48: =$I$8*6 -> 4,131.00 kr. | F48: prøver | G48: =D48*E48 -> 0 | H48: 0 | I48: 0
B49: Rapport | G49: =IF(E48="",,IF(E48<5,$I$8*2,IF(E48<10,$I$8*8,IF(E48>9,$I$8*16,)))) -> 0 | H49: 0 | I49: 0
B50: SAMLET | G50: =SUM(G46:G49) -> 0 | H50: =SUM(H46:H49) -> 0 | I50: =SUM(I46:I49) -> 0
B51: VANDDRUKKENT TRÆ
B52: Vedbestemmelse | C52: Inkl. grundlæggende rapport | D52: ='PRISLISTE NAT.'!$E$52&"-"&'PRISLISTE NAT.'!$E$50&" kr." -> 1032,75-1377 kr. | F52: prøver | G52: =IF(E52=1,($I$8*2),IF(E52=2,(($I$8*2)+($I$8*1.75)),IF(E52=3,((($I$8*2)+($I$8*1.75)+($I$8*1.75))),IF(E52>3,((($I$8*2)+($I$8*1.75)+($I$8*1.75))+(E52-3)*($I$8*1.5)),)))) -> 0 | H52: =G52*0.25 -> 0 | I52: =SUM(G52:H52) -> 0
B53: SAMLET | G53: =SUM(G52:G52) -> 0 | H53: =SUM(H52:H52) -> 0 | I53: =SUM(I52:I52) -> 0
B54: DENDROKRONOLOGI
B55: Startgebyr pr. sag | C55: Startgebyr ekskluderes (forsættelse af sag) | E55: FALSE | G55: =IF(E55=TRUE(),,IF(OR(E56>0,E58>0,E59>0),$I$8*1.5,)) -> 0 | H55: =G55*0.25 -> 0 | I55: =SUM(G55:H55) -> 0
B56: Kursorisk gennemsyn | C56: Vurderingspris pr. prøve | D56: ='PRISLISTE NAT.'!E55 -> 172.13 kr. | F56: prøver | G56: =D56*E56 -> 0 | H56: 0 | I56: 0
B57: Dendrokronologisk datering | C57: Opstart for datering | G57: =IF(OR(E58>0,E59>0),$I$8*2,) -> 0 | H57: =G57*0.25 -> 0 | I57: 0
C58: Arkæologiske fund | D58: ='PRISLISTE NAT.'!E57 -> 1,377.00 kr. | F58: prøver | G58: =D58*E58 -> 0 | H58: =G58*0.25 -> 0 | I58: 0
C59: Stående bygninger (fx. boreprøver) | D59: ='PRISLISTE NAT.'!E58 -> 688.50 kr. | F59: prøver | G59: =D59*E59 -> 0 | H59: =G59*0.25 -> 0 | I59: 0
B60: SAMLET | G60: =SUM(G55:G59) -> 0 | H60: =SUM(H55:H59) -> 0 | I60: =SUM(I55:I59) -> 0
B61: KNOGLER
B62: Startgebyr pr. ny sag | C62: Startgebyr ekskluderes (forsættelse af sag) | E62: FALSE | G62: =IF(E62=TRUE(),,IF(OR(E63>0,E64>0,E65>0,E66>0,E67>0,E68>0,E69>0,E71>0,,E73>0,E70>0,E72>0),$I$8*1.5,)) -> 0 | H62: =G62*0.25 -> 0 | I62: =SUM(G62:H62) -> 0
B63: Kursorisk gennemsyn | C63: Udsortering af knogler (ex. soldning) | D63: ='PRISLISTE NAT.'!E62 -> 688.50 kr. | F63: timer | G63: =D63*E63 -> 0 | H63: =G63*0.25 -> 0 | I63: =SUM(G63:H63) -> 0
C64: Screening af 5L soldeprøve (ex. soldning) | D64: ='PRISLISTE NAT.'!E63 -> 688.50 kr. | F64: prøver | G64: =D64*E64 -> 0 | H64: 0 | I64: 0
C65: Udvælgelse til analyse | D65: ='PRISLISTE NAT.'!E64 -> 688.50 kr. | F65: timer | G65: =D65*E65 -> 0 | H65: 0 | I65: 0
B66: Zooarkæologi | C66: Zooarkæologisk analyse | D66: ='PRISLISTE NAT.'!E65 -> 688.50 kr. | F66: timer | G66: =D66*E66 -> 0 | H66: 0 | I66: 0
C67: Zooarkæologisk analyse (brandgrav) | D67: ='PRISLISTE NAT.'!E66 -> 688.50 kr. | F67: timer | G67: =D67*E67 -> 0 | H67: 0 | I67: 0
B68: Humanosteologi | C68: Brandgrave/brændtbens-ansamlinger | D68: ='PRISLISTE NAT.'!E67 -> 1,032.75 kr. | F68: kontekst/grav | G68: =D68*E68 -> 0 | H68: 0 | I68: 0
C69: Brandgrav (kursorisk gennemset mat.) | D69: ='PRISLISTE NAT.'!E68 -> 2,065.50 kr. | F69: kontekst/grav | G69: 0 | H69: 0 | I69: 0
C70: Grav (ugennemset mat.) | D70: ='PRISLISTE NAT.'!E69 -> 2,754.00 kr. | F70: skelet | G70: 0 | H70: 0 | I70: 0
C71: Grav (½ skelet) | D71: ='PRISLISTE NAT.'!E70 -> 1,377.00 kr. | F71: skelet | G71: 0 | H71: 0 | I71: 0
B72: Udtagning til 14C- og isotopanalyser | C72: Artsbestememlse og udtagning | D72: ='PRISLISTE NAT.'!$E$35&"-"&'PRISLISTE NAT.'!$E$33&" kr." -> 700-842 kr. | F72: prøver | G72: =IF(E72=1,'PRISLISTE NAT.'!E33,IF(E72=2,('PRISLISTE NAT.'!E33+'PRISLISTE NAT.'!E34),IF(E72=3,('PRISLISTE NAT.'!E33+'PRISLISTE NAT.'!E34+'PRISLISTE NAT.'!E34),IF(AND(E72>3,E72<100),('PRISLISTE NAT.'!E33+'PRISLISTE NAT.'!E34+'PRISLISTE NAT.'!E34+((E72-3)*'PRISLISTE NAT.'!E35)),IF(E72>=100,(('PRISLISTE NAT.'!E33+'PRISLISTE NAT.'!E34+'PRISLISTE NAT.'!E34+(E72-3)*'PRISLISTE NAT.'!E35)*0.8),))))) -> 0 | H72: =G72*0.25 -> 0 | I72: =SUM(G72:H72) -> 0
B73: Levering til Zoologisk Museum/ADBOU | C73: Pris pr. sag. | D73: ='PRISLISTE NAT.'!E74 -> 1,721.25 kr. | F73: sag | G73: 0 | H73: 0 | I73: 0
B74: SAMLET | G74: =SUM(G62:G73) -> 0 | H74: =SUM(H62:H73) -> 0 | I74: =SUM(I62:I73) -> 0
B75: POLLEN
B76: Startgebyr pr. ny sag | C76: Startgebyr ekskluderes (forsættelse af sag) | E76: FALSE | G76: =IF(E76=TRUE(),,IF(OR(E77>0,E78>0),$I$8*1.5+$D$111,)) -> 0 | H76: =G76*0.25 -> 0 | I76: =SUM(G76:H76) -> 0
B77: Kursorisk gennemsyn | C77: Inkl. præparation | D77: =$I$8*4 -> 2,754.00 kr. | F77: prøver | G77: =D77*E77 -> 0 | H77: =G77*0.25 -> 0 | I77: 0
B78: Analyse | C78: Kontakt afdelingen (Tlf. 27 21 99 43) | D78: =$I$8*1 -> 688.50 kr. | F78: timer | G78: =D78*E78 -> 0 | H78: 0 | I78: 0
B79: Prøveudtagning | C79: 2 timer pr. søjle | D79: =$I$8*2 -> 1,377.00 kr. | F79: søjler | G79: =D79*E79 -> 0 | H79: 0 | I79: 0
B80: Frysetørring | C80: Pollensøjle | D80: =$I$8*3 -> 2,065.50 kr. | F80: søjler | G80: =D80*E80 -> 0 | H80: =G80*0.25 -> 0 | I80: =SUM(G80:H80) -> 0
B81: SAMLET | G81: =SUM(G76:G80) -> 0 | H81: =SUM(H76:H80) -> 0 | I81: =SUM(I76:I80) -> 0
B82: NON-POLLEN PALYNOMORPHS (NPP)
B83: Startgebyr pr. ny sag | C83: Startgebyr ekskluderes (forsættelse af sag) | E83: FALSE | G83: =IF(E83=TRUE(),,IF(OR(E84>0,E85>0),$I$8*1.5+$D$111,)) -> 0 | H83: =G83*0.25 -> 0 | I83: =SUM(G83:H83) -> 0
B84: Kursorisk gennemsyn | C84: Inkl. præparation | D84: =$I$8*10 -> 6,885.00 kr. | F84: prøver | G84: =D84*E84 -> 0 | H84: =G84*0.25 -> 0 | I84: =SUM(G84:H84) -> 0
B85: Analyse | C85: Kontakt afdelingen (Tlf. 27 21 99 43) | D85: =$I$8 -> 688.50 kr. | F85: timer | G85: =D85*E85 -> 0 | H85: 0 | I85: 0
B86: Prøveudtagning | C86: 2 timer pr. søjle | D86: =$I$8*2 -> 1,377.00 kr. | F86: søjler | G86: =D86*E86 -> 0 | H86: 0 | I86: 0
B87: SAMLET | G87: =SUM(G83:G86) -> 0 | H87: =SUM(H83:H86) -> 0 | I87: =SUM(I83:I86) -> 0
B88: TEFRA
B89: Analyse | C89: Kontakt afdelingen (Tlf. 87 39 40 41) | D89: =$I$8 -> 688.50 kr. | F89: timer | G89: =D89*E89 -> 0 | H89: =G89*0.25 -> 0 | I89: =SUM(G89:H89) -> 0
B90: SAMLET | G90: =SUM(G89:G89) -> 0 | H90: =SUM(H89:H89) -> 0 | I90: =SUM(I89:I89) -> 0
B91: INSEKTER
B92: Startgebyr | C92: Startgebyr ekskluderes (forsættelse af sag) | E92: FALSE | G92: =IF(E92=TRUE(),,IF(OR(E93>0,E93>0),$I$8*1.5,)) -> 0 | H92: =G92*0.25 -> 0 | I92: =SUM(G92:H92) -> 0
B93: Screening/Kursorisk | C93: Vådsoldning max. 5 liters jordprøve | D93: =$I$8*3.5 -> 2,409.75 kr. | F93: prøver | G93: =D93*E93 -> 0 | H93: =G93*0.25 -> 0 | I93: =SUM(G93:H93) -> 0
B94: Analyse | C94: Entomologisk analyse inkl. rapport | D94: ='PRISLISTE NAT.'!$E$90 -> 6,885.00 kr. | F94: prøver | G94: =D94*E94 -> 0 | H94: 0 | I94: 0
B95: SAMLET | G95: =SUM(G92:G94) -> 0 | H95: =SUM(H92:H94) -> 0 | I95: =SUM(I92:I94) -> 0
B96: SLAGGER
B97: Startgebyr pr. ny sag | C97: Startgebyr ekskluderes (forsættelse af sag) | E97: FALSE | G97: =IF(E97=TRUE(),,IF(E98>0,$I$8,)) -> 0 | H97: =G97*0.25 -> 0 | I97: =SUM(G97:H97) -> 0
B98: Kursorisk vurdering | C98: Slagger & ovnfrag., eksl. rapport | D98: =$I$8 -> 688.50 kr. | F98: timer | G98: =D98*E98 -> 0 | H98: 0 | I98: 0
B99: Rapport | G99: =IF(E98>0,4*$I$8,) -> 0 | H99: 0 | I99: 0
B100: SAMLET | G100: =SUM(G97:G99) -> 0 | H100: =SUM(H97:H99) -> 0 | I100: =SUM(I97:I99) -> 0
B101: TYNDSLIB
B102: Analyse | C102: Kontakt afdelingen (Tlf. 87 39 40 41) | D102: =$I$8 -> 688.50 kr. | F102: timer | G102: =D102*E102 -> 0 | H102: =G102*0.25 -> 0 | I102: =SUM(G102:H102) -> 0
B103: SAMLET | G103: =SUM(G102:G102) -> 0 | H103: =SUM(H102:H102) -> 0 | I103: =SUM(I102:I102) -> 0
B104: CT-SCANNING & RØNTGEN
B105: Startgebyr | C105: Startgebyr ekskluderes (forsættelse af sag) | E105: FALSE | G105: =IF(E105=TRUE(),,IF(OR(E106>0,E107>0,E108>0),$I$8*2.5,)) -> 0 | H105: =G105*0.25 -> 0 | I105: =SUM(G105:H105) -> 0
B106: CT-scanning | C106: Fx af urner | D106: ='PRISLISTE NAT.'!E104 -> 2,500.00 kr. | F106: scanningstimer | G106: =IF(E106>0,D106*(ROUNDUP(E106/3,0)),) -> 0 | H106: =G106*0.25 -> 0 | I106: =SUM(G106:H106) -> 0
B107: Mikro CT-scanning | C107: Fx trægenstande | D107: ='PRISLISTE NAT.'!E105 -> 2,500.00 kr. | F107: scanningstimer | G107: =D107*E107 -> 0 | H107: =G107*0.25 -> 0 | I107: =SUM(G107:H107) -> 0
B108: Kørsel | C108: T/r Moesgård-lokalitet | D108: ='PRISLISTE NAT.'!E106 -> 3.81 kr. | F108: km | G108: =D108*E108 -> 0 | H108: =G108*0.25 -> 0 | I108: =SUM(G108:H108) -> 0
B109: SAMLET | G109: =SUM(G105:G108) -> 0 | H109: =SUM(H105:H108) -> 0 | I109: =SUM(I105:I108) -> 0
B110: FORSENDELSE, SAMMENSKRIVNING MM.
B111: Forsendelse (pr. sag) | C111: <2kg | D111: ='PRISLISTE NAT.'!E108 -> 335.00 kr. | F111: pakker | G111: =D111*E111 -> 0 | H111: =G111*0.25 -> 0 | I111: =SUM(G111:H111) -> 0
C112: >2kg (Kontakt afdelingen, tlf. 87 39 40 41) | D112: =$I$8 -> 688.50 kr. | F112: timer | G112: =D112*E112 -> 0 | H112: 0 | I112: 0
B113: Sammenskrivning af rapporter (pr. sag) | C113: Kontakt afdelingen (Tlf. 87 39 40 41) | D113: =$I$8 -> 688.50 kr. | F113: timer | G113: =D113*E113 -> 0 | H113: =G113*0.25 -> 0 | I113: =SUM(G113:H113) -> 0
B114: SAMLET | G114: =SUM(G111:G113) -> 0 | H114: =SUM(H111:H113) -> 0 | I114: =SUM(I111:I113) -> 0
B115: SAMLET PRIS FOR NATURVIDENSKAB
B116: KATEGORI | G116: PRIS EX. MOMS | H116: MOMS | I116: PRIS INKL. MOMS
B117: =B$10 -> KONSULENTSERVICE | C117: SUM | G117: =G$17 -> 0 | H117: =H$17 -> 0 | I117: 0
B118: =B$18 -> PRØVEFORARBEJDNING | C118: SUM | G118: =G$22 -> 0 | H118: =H$22 -> 0 | I118: 0
B119: KERNEBORINGER | C119: SUM | G119: =G$27 -> 0 | H119: =H$27 -> 0 | I119: =I$27 -> 0
B120: =B$28 -> MAKROFOSSILER | C120: SUM | G120: =G$37 -> 0 | H120: =H$37 -> 0 | I120: =I$37 -> 0
B121: =" KURSORISK" -> KURSORISK | G121: =SUM(G$29:G$34) -> 0 | H121: =SUM(H$29:H$34) -> 0 | I121: =SUM(I$29:I$34) -> 0
B122: =" ANALYSE" -> ANALYSE | G122: =SUM(G$35:G$36) -> 0 | H122: =SUM(H$35:H$36) -> 0 | I122: 0
B123: =B$38 -> UDTAGNING TIL 14C-DATERING | C123: SUM | G123: =G$44 -> 0 | H123: =H$44 -> 0 | I123: 0
B124: =B$45 -> TRÆKUL | C124: SUM | G124: =G$50 -> 0 | H124: =H$50 -> 0 | I124: 0
B125: =" KURSORISK" -> KURSORISK | G125: =SUM(G$46:G$47) -> 0 | H125: =SUM(H$46:H$47) -> 0 | I125: 0
B126: =" ANALYSE" -> ANALYSE | G126: =SUM(G$48:G$49) -> 0 | H126: =SUM(H$48:H$49) -> 0 | I126: 0
B127: =B$51 -> VANDDRUKKENT TRÆ | C127: SUM | G127: =G$53 -> 0 | H127: =H$53 -> 0 | I127: 0
B128: =B$54 -> DENDROKRONOLOGI | C128: SUM | G128: =G60 -> 0 | H128: =H60 -> 0 | I128: =I60 -> 0
B129: =" KURSORISK" -> KURSORISK | G129: =SUM(G$55:G$56) -> 0 | H129: =SUM(H$55:H$56) -> 0 | I129: 0
B130: =" DATERING" -> DATERING | G130: =SUM(G$57:G$59) -> 0 | H130: =SUM(H$57:H$59) -> 0 | I130: 0
B131: =B$61 -> KNOGLER | C131: SUM | G131: =G$74 -> 0 | H131: =H$74 -> 0 | I131: 0
B132: =" KURSORISK" -> KURSORISK | G132: =SUM(G$62:G$65) -> 0 | H132: =SUM(H$62:H$65) -> 0 | I132: =SUM(I$62:I$65) -> 0
B133: =" ANALYSE" -> ANALYSE | G133: =SUM(G$66:G$73) -> 0 | H133: =SUM(H$66:H$73) -> 0 | I133: =SUM(I$66:I$73) -> 0
B134: =B$75 -> POLLEN | C134: SUM | G134: =G$81 -> 0 | H134: =H$81 -> 0 | I134: 0
B135: =" KURSORISK" -> KURSORISK | G135: =SUM(G$76:G$77) -> 0 | H135: =SUM(H$76:H$77) -> 0 | I135: =SUM(I$76:I$77) -> 0
B136: =" ANALYSE" -> ANALYSE | G136: =SUM(G$78) -> 0 | H136: =SUM(H$78) -> 0 | I136: 0
B137: =" FRYSETØRRING" -> FRYSETØRRING | G137: =SUM(G$80) -> 0 | H137: =SUM(H$80) -> 0 | I137: 0
B138: =B$82 -> NON-POLLEN PALYNOMORPHS (NPP) | C138: SUM | G138: =G$87 -> 0 | H138: =H$87 -> 0 | I138: 0
B139: =" KURSORISK" -> KURSORISK | G139: =SUM(G$83:G$84) -> 0 | H139: =SUM(H$83:H$84) -> 0 | I139: =SUM(I$83:I$84) -> 0
B140: =" ANALYSE" -> ANALYSE | G140: =SUM(G$85) -> 0 | H140: =SUM(H$85) -> 0 | I140: =SUM(I$85) -> 0
B141: =B$88 -> TEFRA | C141: SUM | G141: =G$90 -> 0 | H141: =H$90 -> 0 | I141: 0
B142: INSEKTER | C142: SUM | G142: =G$95 -> 0 | H142: =H$95 -> 0 | I142: =I$95 -> 0
B143: =" KURSORISK" -> KURSORISK | G143: =SUM(G$92:G$93) -> 0 | H143: =SUM(H$92:H$93) -> 0 | I143: 0
B144: =" ANALYSE" -> ANALYSE | G144: =G$94 -> 0 | H144: =H$94 -> 0 | I144: 0
B145: =B$96 -> SLAGGER | C145: SUM | G145: =G$100 -> 0 | H145: =H$100 -> 0 | I145: =I$100 -> 0
B146: TYNDSLIB | C146: SUM | G146: =G$103 -> 0 | H146: =H$103 -> 0 | I146: 0
B147: CT-SCANNING & RØNTGEN | C147: SUM | G147: =G$109 -> 0 | H147: =H$109 -> 0 | I147: 0
B148: =B$110 -> FORSENDELSE, SAMMENSKRIVNING MM. | C148: SUM | G148: =G$114 -> 0 | H148: =H$114 -> 0 | I148: =I$114 -> 0
B149: SAMLET | G149: =SUMIF($C$117:$C$148,"SUM",G$117:G$148) -> 0 | H149: =SUMIF($C$117:$C$148,"SUM",H$117:H$148) -> 0 | I149: =SUMIF($C$117:$C$148,"SUM",I$117:I$148) -> 0

Sheet PRISOVERSLAG ARKÆO.
B3: PRISOVERSLAG ARKÆOBOTANIK - Fund- og anlægseksempler
B4: Skemaets beregninger er baseret på priserne fra arket "Prisliste Naturvidenskab". Kolonne C indeholder samlede priser for arkæobotaniske analyser af fund- og anlægseksempler fra kolonne B. Nedenstående priser på arkæobotanisk analyse tager udgangspunkt i en gennemsnitlig bevaring af makrofossiler. Den reelle pris for arkæobotanisk analyse udregnes først efter det kursoriske gennemsyn af prøverne. I de gule felter i kolonne D indtastes det ønskede/forventede antal af de relevante fund/anlæg for den givne lokalitet. Priserne overføres automatisk til arket "Prisberegner Naturvidenskab".
F5: Timepris (kr. ex. moms): | G5: 688.50 kr.
B6: FUND / ANLÆG | C6: PRIS PR. STK. | D6: ANTAL | E6: PRIS EX. MOMS | F6: MOMS | G6: PRIS INKL. MOMS
B7: Brønd og grube - pr. prøve | C7: =16*$G$5 -> 11,016.00 kr. | E7: =C7*D7 -> 0 | F7: =E7*0.25 -> 0 | G7: =SUM(E7:F7) -> 0
B8: Grubehus pr. prøve | C8: =16*$G$5 -> 11,016.00 kr. | E8: =C8*D8 -> 0 | F8: =E8*0.25 -> 0 | G8: =SUM(E8:F8) -> 0
B9: Hus - Brandtomt | C9: =144*$G$5 -> 99,144.00 kr. | E9: 0 | F9: 0 | G9: 0
B10: Hus - kun tagbærende | C10: =64*$G$5 -> 44,064.00 kr. | E10: 0 | F10: 0 | G10: 0
B11: Hus med gulv/vægkonstruktion | C11: =104*$G$5 -> 71,604.00 kr. | E11: 0 | F11: 0 | G11: 0
B12: Ildsted | C12: =16*$G$5 -> 11,016.00 kr. | E12: =C12*D12 -> 0 | F12: 0 | G12: 0
B13: Jernudvindingsovn | C13: =24*$G$5 -> 16,524.00 kr. | E13: =C13*D13 -> 0 | F13: 0 | G13: =SUM(E13:F13) -> 0
B14: Kulturlag i by - pr prøve | C14: =24*$G$5 -> 16,524.00 kr. | E14: 0 | F14: 0 | G14: 0
B15: Kulturlag og køkkenmødding - pr. prøve | C15: =24*$G$5 -> 16,524.00 kr. | E15: 0 | F15: 0 | G15: 0
B16: Latriner - pr. prøve | C16: =32*$G$5 -> 22,032.00 kr. | E16: 0 | F16: 0 | G16: 0
B17: Ovn | C17: =40*$G$5 -> 27,540.00 kr. | E17: 0 | F17: 0 | G17: 0
B18: Staklader, mindre økonomibygninger og hegn | C18: =24*$G$5 -> 16,524.00 kr. | E18: 0 | F18: 0 | G18: 0
B20: SAMLET PRIS ARKÆOBOTANIK | E20: =SUM(E7:E18) -> 0 | F20: =E20*0.25 -> 0 | G20: =SUM(E20:F20) -> 0

Sheet PRISLISTE KONS.
B3: PRISLISTE KONSERVERING
B5: Priser gældende fra november 2025. Fra 2022 og frem indeksreguleres timeprisen halvårligt den 1/4 og 1/10. Alle priser er vejledende og afspejler kun gennemsnitsprisen for en enkelt genstand. Fragmenteringsgraden vil have yderligere indflydelse på prisen. Ved flere ensartede genstande vil prisen være reduceret. Man er altid velkommen til (omkostningsfrit) at ringe til afdelingen med sprøgsmål. Ret til ændringer forbeholdes.
B6: Kontakt afdelingen: 87 39 40 44 | F6: Timepris (kr. ex. moms): | G6: 688.50 kr.
B7: POST | C7: KOMMENTAR / BESKRIVELSE | D7: PRØVETYPE | E7: TIMEANTAL | F7: PRIS EX.MOMS (kr.)
B8: KONSULENTSERVICE - Vi anbefaler at ansøge om konsulentservice i forbindelse med budgetplanlægning
B9: Strategimøde (telefonisk) | C9: F.eks. via skype | F9: =$G$6 -> 688.50 kr. | G9: pr. time
B10: Strategimøde i felten | C10: Ekskl. kørsel | F10: =$G$6 -> 688.50 kr. | G10: pr. time
B11: Prøveudtagning/feltarbejde | C11: Ekskl. kørsel og felttillæg | F11: =$G$6 -> 688.50 kr. | G11: pr. time
B12: Kørsel | C12: Tur-retur mellem Moesgård og lokalitet | F12: 3.81 kr. | G12: pr. km
B13: Felttillæg | C13: Ved feltarbejde | F13: 100.00 kr. | G13: pr. dag
B14: PRÆPARATOPTAG
B15: Startgebyr | F15: =$G$6*1.5 -> 1,032.75 kr. | G15: pr. sag
B16: Stort præparat (f.eks. urne, sværd) | C16: Ekskl. kørsel | E16: 6 | F16: =$G$6*E16 -> 4,131.00 kr. | G16: pr. præparat
B17: Lille præparat (f.eks. kniv, fibel) | C17: Ekskl. kørsel | E17: 4 | F17: =$G$6*E17 -> 2,754.00 kr. | G17: pr. præparat
B18: Kørsel | C18: Tur-retur mellem Moesgård og lokalitet | F18: 3.81 kr. | G18: pr. km
B19: SÆRLIG DOKUMENTATION
B20: Startgebyr | F20: =$G$6*1.5 -> 1,032.75 kr. | G20: pr. sag
B21: Mikroskopbilleder | D21: 1. genstand | E21: 0.5 | F21: =$G$6*E21 -> 344.25 kr. | G21: pr. genstand
D22: Efterfølgende genstande | E22: 0.25 | F22: =$G$6*E22 -> 172.13 kr. | G22: pr. genstand
B23: Røntgenbilleder | C23: Præparat med enkelt genstand | E23: 1.65 | F23: =$G$6*E23 -> 1,136.03 kr. | G23: pr. genstand
C24: Urne eller præparat med flere genstande | F24: Kontakt afdelingen (tlf. 87 39 40 44)
C25: Fritlagt genstand | D25: 1. genstand | E25: 0.65 | F25: =$G$6*E25 -> 447.53 kr. | G25: pr. genstand
D26: Efterfølgende genstande | E26: 0.5 | F26: =$G$6*E26 -> 344.25 kr. | G26: pr. genstand
B27: 3D dokumentation | C27: Henvendelse til Arkæologisk IT (tlf. 87 16 21 76) vedr. priser på feltarbejde, genstande eller præparater | F27: Kontakt afdelingen (tlf. 87 39 40 44)
B28: CT-SCANNING
B29: Startgebyr | F29: =$G$6*2.5 -> 1,721.25 kr. | G29: pr. sag
B30: CT-scanning | C30: Fx urner | F30: 2,500.00 kr. | G30: pr. scanningstime
B31: Mikro CT-scanning | C31: Fx trægenstande ifbm. dendrokronologi | F31: 2,500.00 kr. | G31: pr. scanningstime
B32: Kørsel | C32: Tur-retur mellem Moesgård og lokalitet | F32: =$F$12 -> 3.81 kr. | G32: pr. km
B33: MATERIALEANALYSER
B34: Startgebyr | F34: =$G$6*1.5 -> 1,032.75 kr. | G34: pr. sag
B35: Artsbestemmelse | C35: Af læder og hud | E35: 4 | F35: =$G$6*$E35 -> 2,754.00 kr. | G35: pr. prøve
B36: Fiberidentifikation | C36: Af tekstil og pels | E36: 4 | F36: =$G$6*$E36 -> 2,754.00 kr. | G36: pr. prøve
B37: Spottest | C37: Metalidentifikation | E37: 4 | F37: 2,754.00 kr. | G37: pr. prøve
B38: Lipidanalyse | C38: Analyse (eksternt laboratorie): 892,50 euro (6.693,00 kr.) ex.moms. | F38: 6,693.00 kr. | G38: pr. prøve
C39: Udtagning, forsendelse, og tolkning: 4 t á 605,00 kr. | D39: 1. prøve/genstand | E39: 4 | F39: =$G$6*$E39 -> 2,754.00 kr. | G39: pr. prøve
D40: Efterfølgende prøver/genstande | F40: Kontakt afdelingen (tlf. 87 39 40 44)
B41: STABILISERENDE KONSERVERING - Vejledende priser for typiske eksempler (inkluderer 1,5 time til opstart, modtagelse, pakning, tilbud- og rapportskrivning) Alle genstande pakkes i syrefrie materialer til længerevarende opmagasinering eller efter behov til transport med medfølgende rapport om observationer og klimaanbefalinger
B42: Startgebyr | F42: =$G$6*1.5 -> 1,032.75 kr. | G42: pr. sag
B43: Jern | C43: Kniv, middelstørrelse | E43: 9 | F43: =$G$6*E43 -> 6,196.50 kr. | G43: pr. genstand
C44: Nitte/søm | E44: 6 | F44: =$G$6*E44 -> 4,131.00 kr. | G44: pr. genstand
C45: Fibel | E45: 10 | F45: =$G$6*E45 -> 6,885.00 kr. | G45: pr. genstand
C46: Økse | E46: 16 | F46: 11,016.00 kr. | G46: pr. genstand
B47: Bronze | C47: Fibel, ukompliceret | E47: 12 | F47: 8,262.00 kr. | G47: pr. genstand
C48: Mønt | E48: 8 | F48: 5,508.00 kr. | G48: pr. genstand
B49: Bly | C49: Vægtlod | E49: 4 | F49: 2,754.00 kr. | G49: pr. genstand
B50: Sølv | C50: Fibel | E50: 16 | F50: 11,016.00 kr. | G50: pr. genstand
C51: Mønt | E51: 8 | F51: 5,508.00 kr. | G51: pr. genstand
B52: Glasperle | D52: 1-3. stk. | E52: 1 | F52: 688.50 kr. | G52: pr. genstand
D53: Efterfølgende genstande | E53: 0.5 | F53: 344.25 kr. | G53: pr. genstand
B54: Ravperle | D54: 1-3. stk. | E54: 2 | F54: 1,377.00 kr. | G54: pr. genstand
D55: Efterfølgende genstande | E55: 1 | F55: 688.50 kr. | G55: pr. genstand
B56: Keramik | C56: Stabiliserende sammensætning af kar | E56: 30 | F56: 20,655.00 kr. | G56: pr. kar
C57: Udgravning af tomt kar | E57: 6 | F57: 4,131.00 kr. | G57: pr. kar
C58: Udgravning af urne med knogler og genstande | F58: Kontakt afdelingen (tlf. 87 39 40 44)
B59: Ben og tak (tørt) | C59: Nål | E59: 2 | F59: 1,377.00 kr. | G59: pr. genstand
C60: Perle | E60: 2 | F60: 1,377.00 kr. | G60: pr. genstand
C61: Spillebrik | E61: 3 | F61: 2,065.50 kr. | G61: pr. genstand
B62: Ubrændt ler | C62: Vævevægt e. lign. | E62: 12 | F62: 8,262.00 kr. | G62: pr. genstand
B63: Komposit | C63: Jernkniv m. organisk skaft (ex. træ eller ben) | E63: 24 | F63: 16,524.00 kr. | G63: pr. genstand
C64: Bronzefibel m. organisk materiale (ex. tekstil eller træ) | E64: 15 | F64: 10,327.50 kr. | G64: pr. genstand
B65: FRYSETØRRING
B66: Vanddrukkent træ | C66: Mindre genstande (ex. åreblad) | F66: Kontakt afdelingen (tlf. 87 39 40 44)
C67: Større genstande (ex. bygningstømmer) | F67: Kontakt afdelingen (tlf. 87 39 40 44)
B68: Læder (vådfundet) | C68: Læderfragmenter (5 stk.) | F68: Kontakt afdelingen (tlf. 87 39 40 44)
B69: Tekstil (vådfundet) | C69: 5 stk. | F69: Kontakt afdelingen (tlf. 87 39 40 44)

Sheet PRISBEREGNER KONS.
B3: PRISBEREGNER KONSERVERING
B5: Skemaets beregninger er baseret på priserne fra arket "Prisliste Konservering". | H5: DATO
B6: Skemaet kan benyttes til at udregne priser og skabe overblik over konservering ifm. ansøgninger til Slots- og Kulturstyrelsen. | H6: JOURNAL NR.
B7: I de gule felter i kolonne E indtastes det ønskede/forventede antal af de relevante ydelser for den givne lokalitet.
H8: Timepris (kr. ex. moms): | I8: 688.50 kr.
B9: POST | C9: PRØVETYPE / KOMMENTAR | D9: PRIS PR. ENHED | E9: ANTAL | G9: PRIS EX. MOMS | H9: MOMS | I9: PRIS INKL. MOMS
B10: KONSULENTSERVICE
B11: Strategimøde (telefonisk) | C11: F.eks. via skype | D11: =$I$8 -> 688.50 kr. | F11: timer | G11: =D11*E11 -> 0 | H11: =G11*0.25 -> 0 | I11: =SUM(G11:H11) -> 0
B12: Strategimøde i felten | C12: Ekskl. kørsel | D12: =$I$8 -> 688.50 kr. | F12: timer | G12: 0 | H12: 0 | I12: 0
B13: Prøveudtagning/feltarbejde | C13: Ekskl. kørsel og felttillæg | D13: 688.50 kr. | F13: timer | G13: 0 | H13: 0 | I13: 0
B14: Kørsel | C14: T/r Moesgård-lokalitet | D14: ='PRISLISTE KONS.'!F12 -> 3.81 kr. | F14: km | G14: =D14*E14 -> 0 | H14: =G14*0.25 -> 0 | I14: =SUM(G14:H14) -> 0
B15: Felttillæg | C15: Pr. dag | D15: 100 | F15: dage | G15: =D15*E15 -> 0 | H15: =G15*0.25 -> 0 | I15: =SUM(G15:H15) -> 0
B16: SAMLET | G16: =SUM(G11:G15) -> 0 | H16: =SUM(H11:H15) -> 0 | I16: =SUM(I11:I15) -> 0
B17: PRÆPARATOPTAG
B18: Startgebyr | G18: =IF(OR(E19>0,E20>0),$I$8*1.5,) -> 0 | H18: =G18*0.25 -> 0 | I18: =SUM(G18:H18) -> 0
B19: Stort præparat (f.eks. urne, sværd) | C19: Ekskl. kørsel | D19: ='PRISLISTE KONS.'!$F$16 -> 4,131.00 kr. | F19: præparater | G19: =D19*E19 -> 0 | H19: =G19*0.25 -> 0 | I19: =SUM(G19:H19) -> 0
B20: Lille præparat (f.eks. kniv, fibel) | C20: Ekskl. kørsel | D20: ='PRISLISTE KONS.'!$F$17 -> 2,754.00 kr. | F20: præparater | G20: 0 | H20: 0 | I20: 0
B21: Kørsel | C21: Tur-retur mellem Moesgård og lokalitet | D21: ='PRISLISTE KONS.'!F12 -> 3.81 kr. | F21: km | G21: 0 | H21: =G21*0.25 -> 0 | I21: =SUM(G21:H21) -> 0
B22: SAMLET | G22: =SUM(G18:G21) -> 0 | H22: =SUM(H18:H21) -> 0 | I22: =SUM(I18:I21) -> 0
B23: SÆRLIG DOKUMENTATION
B24: Startgebyr | G24: =IF(OR(E25>0,E26>0,E27>0,E28>0,E29>0),$I$8*1.5,) -> 0 | H24: =G24*0.25 -> 0 | I24: =SUM(G24:H24) -> 0
B25: Mikroskopbilleder | D25: ='PRISLISTE KONS.'!F21&" - "&'PRISLISTE KONS.'!F22&" kr." -> 344,25 - 172,125 kr. | F25: genstande | G25: =IF(E25=1,($I$8*0.5),IF(E25>1,($I$8*0.5)+(($I$8*0.25)*(E25-1)),)) -> 0 | H25: =G25*0.25 -> 0 | I25: =SUM(G25:H25) -> 0
B26: Røntgenbilleder | C26: Præparat med enkelt genstand | D26: ='PRISLISTE KONS.'!F23 -> 1,136.03 kr. | F26: genstande | G26: =D26*E26 -> 0 | H26: =G26*0.25 -> 0 | I26: 0
C27: Urne eller præparat med flere genstande. Kontakt afdelingen (tlf. 87 39 40 44) | D27: =$I$8+100 -> 788.50 kr. | F27: timer | G27: 0 | H27: 0 | I27: 0
C28: Fritlagt genstand | D28: ='PRISLISTE KONS.'!F25&" - "&'PRISLISTE KONS.'!F26&" kr." -> 447,525 - 344,25 kr. | F28: genstande | G28: =IF(E28=1,($I$8*0.65),IF(E28>1,($I$8*0.65)+(($I$8*0.5)*(E28-1)),)) -> 0 | H28: 0 | I28: 0
B29: 3D dokumentation | C29: Kontakt afdelingen (tlf. 87 39 40 44) | D29: =$I$8 -> 688.50 kr. | F29: timer | G29: 0 | H29: 0 | I29: 0
B30: SAMLET | G30: =SUM(G24:G29) -> 0 | H30: =G30*0.25 -> 0 | I30: =SUM(G30:H30) -> 0
B31: CT-SCANNING
B32: Startgebyr | G32: =IF(OR(E33>0,E34>0,E35>0),$I$8*2.5,) -> 0
B33: CT-scanning | C33: Fx urner | D33: ='PRISLISTE KONS.'!F30 -> 2,500.00 kr. | F33: scanningstime | G33: =D33*E33 -> 0 | H33: =G33*0.25 -> 0 | I33: =SUM(G33:H33) -> 0
B34: Mikro CT-scanning | C34: Fx trægenstande ifbm. dendrokronologi | D34: ='PRISLISTE KONS.'!F31 -> 2,500.00 kr. | F34: scanningstime | G34: 0 | H34: =G34*0.25 -> 0 | I34: 0
B35: Kørsel | C35: Tur-retur mellem Moesgård og lokalitet | D35: ='PRISLISTE KONS.'!F12 -> 3.81 kr. | F35: km | G35: 0 | H35: 0 | I35: 0
B36: SAMLET | G36: =SUM(G32:G35) -> 0 | H36: =SUM(H32:H35) -> 0 | I36: =SUM(I32:I35) -> 0
B37: MATERIALEANALYSER
B38: Startgebyr | G38: =IF(OR(E39>0,E40>0,E41>0,E43>0),$I$8*1.5,) -> 0 | H38: =G38*0.25 -> 0 | I38: =SUM(G38:H38) -> 0
B39: Artsbestemmelse, | C39: Af læder og hud | D39: ='PRISLISTE KONS.'!F35 -> 2,754.00 kr. | F39: prøver | G39: =D39*E39 -> 0 | H39: =G39*0.25 -> 0 | I39: =SUM(G39:H39) -> 0
B40: Fiberidentifikation | C40: Af tekstil og pels | D40: ='PRISLISTE KONS.'!F36 -> 2,754.00 kr. | F40: prøver | G40: 0 | H40: =G40*0.25 -> 0 | I40: 0
B41: Spottest | C41: Metalidentifikation | D41: ='PRISLISTE KONS.'!F37 -> 2,754.00 kr. | F41: prøver | G41: 0 | H41: =G41*0.25 -> 0 | I41: 0
B42: Lipidanalyse | C42: Analyse (eksternt laboratorie) | D42: ='PRISLISTE KONS.'!F38 -> 6,693.00 kr. | G42: =D42*E43 -> 0 | H42: 0 | I42: 0
C43: Udtagning af materiale, forsendelse og tolkning af resultater | D43: ='PRISLISTE KONS.'!F39 -> 2,754.00 kr. | F43: prøver | G43: =D43*E43 -> 0 | H43: 0 | I43: =SUM(G43:H43) -> 0
B44: SAMLET | G44: =SUM(G38:G43) -> 0 | H44: =SUM(H38:H43) -> 0 | I44: =SUM(I38:I43) -> 0
B45: STABILISERENDE KONSERVERING
B46: Jern | C46: Kniv, middelstørrelse | D46: ='PRISLISTE KONS.'!F43 -> 6,196.50 kr. | F46: genstande | G46: =IF(E46>1,D46+(($I$8*('PRISLISTE KONS.'!E43-0.5))*(E46-1)),D46*E46) -> 0 | H46: =G46*0.25 -> 0 | I46: =SUM(G46:H46) -> 0
C47: Nitte/søm | D47: ='PRISLISTE KONS.'!F44 -> 4,131.00 kr. | F47: genstande | G47: =IF(E47>1,D47+(($I$8*('PRISLISTE KONS.'!E44-0.5))*(E47-1)),D47*E47) -> 0 | H47: 0 | I47: 0
C48: Fibel | D48: ='PRISLISTE KONS.'!F45 -> 6,885.00 kr. | F48: genstande | G48: =IF(E48>1,D48+(($I$8*('PRISLISTE KONS.'!E45-0.5))*(E48-1)),D48*E48) -> 0 | H48: 0 | I48: 0
C49: Økse | D49: ='PRISLISTE KONS.'!F46 -> 11,016.00 kr. | F49: genstande | G49: =IF(E49>1,D49+(($I$8*('PRISLISTE KONS.'!E46-0.5))*(E49-1)),D49*E49) -> 0 | H49: 0 | I49: 0
B50: Bronze | C50: Fibel, ukompliceret | D50: =$I$8*'PRISLISTE KONS.'!E47 -> 8,262.00 kr. | F50: genstande | G50: =IF(E50>1,D50+(D50*(E50-1)*0.9),D50*E50) -> 0 | H50: 0 | I50: 0
C51: Mønt | D51: =$I$8*'PRISLISTE KONS.'!E48 -> 5,508.00 kr. | F51: genstande | G51: =D51*E51 -> 0 | H51: 0 | I51: 0
B52: Bly | C52: Vægtlod | D52: =$I$8*'PRISLISTE KONS.'!E49 -> 2,754.00 kr. | F52: genstande | G52: =IF(E52>1,D52+(D52*(E52-1)*0.9),D52*E52) -> 0 | H52: 0 | I52: 0
B53: Sølv | C53: Fibel | D53: =$I$8*'PRISLISTE KONS.'!E50 -> 11,016.00 kr. | F53: genstande | G53: =IF(E53>1,D53+(D53*(E53-1)*0.9),D53*E53) -> 0 | H53: 0 | I53: 0
C54: Mønt | D54: =$I$8*'PRISLISTE KONS.'!E51 -> 5,508.00 kr. | F54: genstande | G54: =D54*E54 -> 0 | H54: 0 | I54: 0
B55: Glas | C55: Perle | D55: ='PRISLISTE KONS.'!F52&" - "&'PRISLISTE KONS.'!F53&" kr." -> 688,5 - 344,25 kr. | F55: genstande | G55: =IF(E55=1,$I$8,IF(E55=2,($I$8*2),IF(E55=3,($I$8*3),IF(E55>3,($I$8*3)+(E55-3)*($I$8*0.5),)))) -> 0 | H55: =G55*0.25 -> 0 | I55: 0
B56: Rav | C56: Perle | D56: ='PRISLISTE KONS.'!F54&" - "&'PRISLISTE KONS.'!F55&" kr." -> 1377 - 688,5 kr. | F56: genstande | G56: =IF(E56=1,$I$8*2,IF(E56=2,($I$8*4),IF(E56=3,($I$8*6),IF(E56>3,($I$8*6)+(E56-3)*($I$8),)))) -> 0 | H56: 0 | I56: 0
B57: Keramik | C57: Stabiliserende sammensætning af kar | D57: =$I$8*'PRISLISTE KONS.'!E56 -> 20,655.00 kr. | F57: genstande | G57: =D57*E57 -> 0 | H57: 0 | I57: 0
C58: Udgravning af tomt kar | D58: =$I$8*'PRISLISTE KONS.'!E57 -> 4,131.00 kr. | F58: genstande | G58: 0 | H58: 0 | I58: 0
C59: Udgravning af urne med knogler og genstande. Kontakt afdelingen (tlf. 87 39 40 44) | D59: =$I$8 -> 688.50 kr. | F59: timer | G59: =D59*E59 -> 0 | H59: =G59*0.25 -> 0 | I59: =SUM(G59:H59) -> 0
B60: Ben og tak (tørt) | C60: Nål | D60: =$I$8*'PRISLISTE KONS.'!E59 -> 1,377.00 kr. | F60: genstande | G60: =IF(E60>1,D60+(D60*(E60-1)*0.5),D60*E60) -> 0 | H60: 0 | I60: 0
C61: Perle | D61: =$I$8*'PRISLISTE KONS.'!E60 -> 1,377.00 kr. | F61: genstande | G61: =IF(E61>1,D61+(D61*(E61-1)*0.5),D61*E61) -> 0 | H61: 0 | I61: 0
C62: Spillebrik | D62: =$I$8*'PRISLISTE KONS.'!E61 -> 2,065.50 kr. | F62: genstande | G62: 0 | H62: 0 | I62: 0
B63: Ubrændt ler | C63: Vævevægt e. lign. | D63: =$I$8*'PRISLISTE KONS.'!E62 -> 8,262.00 kr. | F63: genstande | G63: =IF(E63>1,D63+(D63*(E63-1)*0.75),D63*E63) -> 0 | H63: 0 | I63: 0
B64: Komposit | C64: Jernkniv m. organisk skaft | D64: =$I$8*'PRISLISTE KONS.'!E63 -> 16,524.00 kr. | F64: genstande | G64: 0 | H64: 0 | I64: 0
C65: Bronzefibel m. organisk materiale | D65: =$I$8*'PRISLISTE KONS.'!E64 -> 10,327.50 kr. | F65: genstande | G65: 0 | H65: 0 | I65: 0
B66: SAMLET | G66: =SUM(G46:G65) -> 0 | H66: =SUM(H46:H65) -> 0 | I66: =SUM(I46:I65) -> 0
B67: FRYSETØRRING
B68: Vanddrukkent træ | C68: Mindre genstande | D68: =$I$8 -> 688.50 kr. | F68: timer | G68: =D68*E68 -> 0 | H68: =G68*0.25 -> 0 | I68: =SUM(G68:H68) -> 0
C69: Større genstande | D69: =$I$8 -> 688.50 kr. | F69: timer | G69: =D69*E69 -> 0 | H69: =G69*0.25 -> 0 | I69: =SUM(G69:H69) -> 0
B70: Læder (vådfundet) | C70: Læderfragmenter (5 stk.) | D70: =$I$8 -> 688.50 kr. | F70: timer | G70: =D70*E70 -> 0 | H70: =G70*0.25 -> 0 | I70: =SUM(G70:H70) -> 0
B71: Tekstil (vådfundet) | C71: 5 stk. | D71: =$I$8 -> 688.50 kr. | F71: timer | G71: =D71*E71 -> 0 | H71: =G71*0.25 -> 0 | I71: =SUM(G71:H71) -> 0
C72: Kontakt afdelingen (tlf. 87 39 40 44)
B73: SAMLET | G73: =SUM(G68:G72) -> 0 | H73: =SUM(H68:H72) -> 0 | I73: 0
B74: SAMLET PRIS FOR KONSERVERING
B75: KATEGORI | G75: PRIS EX. MOMS | H75: MOMS | I75: PRIS INKL. MOMS
B76: =B$10 -> KONSULENTSERVICE | G76: =G$16 -> 0 | H76: =H$16 -> 0 | I76: 0
B77: =B$17 -> PRÆPARATOPTAG | G77: =G$22 -> 0 | H77: =H$22 -> 0 | I77: 0
B78: =B$23 -> SÆRLIG DOKUMENTATION | G78: =G$30 -> 0 | H78: =H$30 -> 0 | I78: 0
B79: CT-SCANNING | G79: =G$36 -> 0 | H79: =H$36 -> 0 | I79: =I$36 -> 0
B80: =B$37 -> MATERIALEANALYSER | G80: =G$44 -> 0 | H80: =H$44 -> 0 | I80: 0
B81: =B$45 -> STABILISERENDE KONSERVERING | G81: =G$66 -> 0 | H81: =H$66 -> 0 | I81: =I$66 -> 0
B82: FRYSETØRRING | G82: =G$73 -> 0 | H82: =H$73 -> 0 | I82: =I$73 -> 0
B83: SAMLET | G83: =SUM(G76:G82) -> 0 | H83: =SUM(H76:H82) -> 0 | I83: =SUM(I76:I82) -> 0

Sheet LOG (hidden)
A1: Opdateringer | B1: Bemærkninger
A2: 2024-04-01 | B2: Indeksreguleret til timepris 665.
B3: Tilføjet mulighed for at fjerne startgebyr ved fortsættelse af sager.
B4: Lipidanalyser (konservering) er rattet jf. Helles analysebeskrivelse
B5: Fil er nu gemt i mappe kaldet "Aktuel prisliste" med generisk titel "Priser Konservering & Naturvidenskab (låst)". Ved næste opdatering udskiftes filen men samme navn benyttes så genvejene forhåbentlig ikke brydes.
A6: 2025-02-01 | B6: Alt Materialeanlyse fjernes fra priser
B7: Farver opdateres til Moesgaard farvepaletten og der tilføjer Moesgaard logo
A8: 2025-04-01 | B8: Ønskede ændring lavet. Fx kerneboringer tilføjet, knogler ændret en del.
